fUSD/lending_fUSD_20250112
["ID","MTS","AMOUNT","RATE_DAILY","PERIOD"]
[348649968,1736698268396,-500.0,0.00011717,2]
[348649969,1736698268407,-500.0,0.00011717,2]
[348649970,1736698268418,-500.0,0.00011717,2]
[348649971,1736698268430,-500.0,0.00011717,2]
[348649972,1736698268439,-500.0,0.00011717,2]
[348649973,1736698268448,-578.26,0.00011717,2]
[348649974,1736698268459,-500.0,0.00011717,2]
[348649975,1736698268469,-500.0,0.00011717,2]
[348649976,1736698268480,-639.94,0.00011717,2]
[348649977,1736698268490,-500.0,0.00011717,2]
[348649978,1736698268499,-500.0,0.00011717,2]
[348649979,1736698268510,-527.2,0.00011717,2]
[348649980,1736698268519,-500.0,0.00011717,2]
[348649981,1736698268528,-500.0,0.00011717,2]
[348649982,1736698268538,-500.0,0.00011717,2]
[348649983,1736698268546,-526.05,0.00011717,2]
[348649984,1736698268555,-500.0,0.00011717,2]
[348649985,1736698268565,-500.0,0.00011717,2]
[348649986,1736698268576,-536.07,0.00011717,2]
[348649987,1736698268585,-500.0,0.00011717,2]
[348649988,1736698268594,-500.0,0.00011717,2]
[348649989,1736698268604,-500.0,0.00011717,2]
[348649990,1736698268613,-500.0,0.00011717,2]
[348649991,1736698268622,-500.0,0.00011717,2]
[348649992,1736698268632,-500.0,0.00011717,2]
[348649993,1736698268642,-500.0,0.00011717,2]
[348649994,1736698268651,-1225.39,0.00011717,2]
[348649995,1736698268660,-500.0,0.00011717,2]
[348649996,1736698268669,-565.92,0.00011717,2]
[348649997,1736698268678,-680.43,0.00011717,2]
[348649998,1736698268688,-949.43,0.00011717,2]
[348649999,1736698268697,-500.0,0.00011717,2]
[348650000,1736698268706,-500.0,0.00011717,2]
[348650001,1736698268715,-500.0,0.00011717,2]
[348650002,1736698268724,-500.0,0.00011717,2]
[348650003,1736698268733,-500.0,0.00011717,2]
[348650004,1736698268742,-500.0,0.00011717,2]
[348650005,1736698268751,-836.62,0.00011717,2]
[348650006,1736698268760,-1224.04,0.00011717,2]
[348650007,1736698268770,-670.04,0.00011717,2]
[348650008,1736698268779,-500.0,0.00011717,2]
[348650009,1736698268788,-966.69,0.00011717,2]
[348650010,1736698268797,-769.16,0.00011717,2]
[348650011,1736698268806,-1278.83,0.00011717,2]
[348650012,1736698268815,-500.0,0.00011717,2]
[348650013,1736698268825,-500.0,0.00011717,2]
[348650014,1736698268834,-500.0,0.00011717,2]
[348650015,1736698268843,-1772.47,0.00011717,2]
[348650016,1736698268853,-500.0,0.00011717,2]
[348650017,1736698268862,-500.0,0.00011717,2]
[348650018,1736698268871,-622.86,0.00011717,2]
[348650019,1736698268880,-500.0,0.00011717,2]
[348650020,1736698268889,-1258.1,0.00011717,2]
[348650021,1736698268898,-500.0,0.00011717,2]
[348650022,1736698268907,-500.0,0.00011717,2]
[348650023,1736698268916,-304.33058377,0.00011717,2]
[348650024,1736698268925,-677.55,0.00011717,2]
[348650025,1736698268934,-500.0,0.00011717,2]
[348650026,1736698268943,-3775.72,0.00011717,2]
[348650027,1736698268953,-587.48,0.00011717,2]
[348650028,1736698268961,-779.09,0.00011717,2]
[348650029,1736698268970,-2872.41,0.00011717,2]
[348650030,1736698268980,-785.75,0.00011717,2]
[348650031,1736698268989,-1364.9,0.00011717,2]
[348650032,1736698268998,-540.47,0.00011717,2]
[348650033,1736698269007,-508.1,0.00011717,2]
[348650034,1736698269016,-751.84,0.00011717,2]
[348650035,1736698269026,-500.0,0.00011717,2]
[348650036,1736698269035,-500.0,0.00011717,2]
[348650037,1736698269044,-1078.66,0.00011717,2]
[348650038,1736698269053,-1350.0,0.00011723,2]
[348650039,1736698269063,-500.0,0.00011726,2]
[348650040,1736698269072,-1350.0,0.00011751,2]
[348650041,1736698269081,-1350.0,0.00011778,2]
[348650042,1736698269090,-1143.03,0.00011779,2]
[348650043,1736698269098,-1189.15,0.00011779,2]
[348650044,1736698269108,-1400.67,0.00011779,2]
[348650045,1736698269117,-1064.24,0.00011779,2]
[348650046,1736698269126,-2470.06,0.00011779,2]
[348650047,1736698269134,-803.79,0.00011781,2]
[348650048,1736698269143,-573.03,0.00011781,2]
[348650049,1736698269152,-803.75,0.00011781,2]
[348650050,1736698269162,-546.86,0.00011781,2]
[348650051,1736698269171,-818.41,0.00011781,2]
[348650052,1736698269182,-1217.4,0.00011781,2]
[348650053,1736698269192,-2076.84,0.00011781,2]
[348650054,1736698269201,-4908.8,0.00011781,2]
[348650055,1736698269211,-883.49,0.00011781,2]
[348650056,1736698269220,-610.05,0.00011781,2]
[348650057,1736698269230,-650.83,0.00011781,2]
[348650058,1736698269239,-1685.23,0.00011781,2]
[348650059,1736698269248,-500.0,0.00011781,2]
[348650060,1736698269258,-1985.75,0.00011781,2]
[348650061,1736698269267,-718.65,0.00011781,2]
[348650062,1736698269276,-1042.88,0.00011781,2]
[348650063,1736698269285,-1379.44,0.00011781,2]
[348650064,1736698269294,-500.0,0.00011781,2]
[348650065,1736698269303,-1000.0,0.00011781,2]
[348650066,1736698269313,-822.3,0.00011781,2]
[348650067,1736698269322,-500.0,0.00011781,2]
[348650068,1736698269333,-200.82351209,0.000118,2]
[348650069,1736698269344,-1350.0,0.00011806,2]
[348650070,1736698269354,-1350.0,0.00011833,2]
[348650071,1736698269364,-1350.0,0.0001186,2]
[348650072,1736698269373,-832.24,0.00011881,2]
[348650073,1736698269382,-558.76,0.00011881,2]
[348650074,1736698269393,-828.37,0.00011881,2]
[348650075,1736698269403,-920.15,0.00011881,2]
[348650076,1736698269412,-559.93,0.00011881,2]
[348650077,1736698269422,-679.82,0.00011881,2]
[348650078,1736698269431,-500.0,0.00011881,2]
[348650079,1736698269441,-500.0,0.00011881,2]
[348650080,1736698269450,-1350.0,0.00011888,2]
[348650081,1736698269459,-1350.0,0.00011915,2]
[348650082,1736698269468,-894.03,0.00011917,2]
[348650083,1736698269478,-2129.69,0.00011917,2]
[348650084,1736698269488,-945.51,0.00011917,2]
[348650085,1736698269498,-751.46,0.00011917,2]
[348650086,1736698269507,-761.1,0.00011917,2]
[348650087,1736698269516,-500.0,0.00011917,2]
[348650088,1736698269525,-500.0,0.00011917,2]
[348650089,1736698269535,-200.82351209,0.00011922,2]
[348650090,1736698269546,-1350.0,0.00011943,2]
[348650091,1736698269555,-1350.0,0.0001197,2]
[348650092,1736698269564,-1590.69,0.00011989,2]
[348650093,1736698269574,-2660.24,0.00011989,2]
[348650094,1736698269583,-1655.31,0.00011989,2]
[348650095,1736698269592,-1031.3,0.00011989,2]
[348650096,1736698269601,-2429.75,0.00011989,2]
[348650097,1736698269610,-931.8,0.00011989,2]
[348650098,1736698269620,-773.96,0.00011989,2]
[348650099,1736698269629,-500.0,0.00011989,2]
[348650100,1736698269639,-960.5,0.00011989,2]
[348650101,1736698269648,-1143.84,0.00011989,2]
[348650102,1736698269658,-500.0,0.00011989,2]
[348650103,1736698269667,-500.0,0.00011989,2]
[348650104,1736698269677,-1522.49,0.00011989,2]
[348650105,1736698269687,-965.77,0.00011989,2]
[348650106,1736698269696,-500.0,0.00011989,2]
[348650107,1736698269705,-839.28,0.00011989,2]
[348650108,1736698269714,-711.53,0.00011989,2]
[348650109,1736698269724,-500.0,0.0001199,2]
[348650110,1736698269734,-845.28,0.0001199,2]
[348650111,1736698269744,-500.0,0.0001199,2]
[348650112,1736698269754,-660.73,0.0001199,2]
[348650113,1736698269763,-500.0,0.0001199,2]
[348650114,1736698269772,-500.0,0.0001199,2]
[348650115,1736698269782,-702.4,0.0001199,2]
[348650116,1736698269791,-500.0,0.0001199,2]
[348650117,1736698269801,-500.0,0.0001199,2]
[348650118,1736698269811,-871.11,0.0001199,2]
[348650119,1736698269820,-500.0,0.0001199,2]
[348650120,1736698269830,-548.82,0.0001199,2]
[348650121,1736698269840,-722.29,0.0001199,2]
[348650122,1736698269849,-665.64,0.0001199,2]
[348650123,1736698269858,-500.0,0.0001199,2]
[348650124,1736698269867,-500.0,0.0001199,2]
[348650125,1736698269877,-500.0,0.0001199,2]
[348650126,1736698269886,-500.0,0.0001199,2]
[348650127,1736698269896,-500.0,0.0001199,2]
[348650128,1736698269905,-500.0,0.0001199,2]
[348650129,1736698269915,-561.61,0.0001199,2]
[348650130,1736698269924,-500.0,0.0001199,2]
[348650131,1736698269935,-500.0,0.0001199,2]
[348650132,1736698269944,-702.99,0.0001199,2]
[348650133,1736698269954,-668.97,0.0001199,2]
[348650134,1736698269965,-651.02,0.0001199,2]
[348650135,1736698269974,-1343.35,0.0001199,2]
[348650136,1736698269984,-500.0,0.0001199,2]
[348650137,1736698269994,-500.0,0.0001199,2]
[348650138,1736698270004,-500.0,0.0001199,2]
[348650139,1736698270013,-500.0,0.0001199,2]
[348650140,1736698270022,-824.32,0.0001199,2]
[348650141,1736698270032,-604.55,0.0001199,2]
[348650142,1736698270041,-500.0,0.0001199,2]
[348650143,1736698270052,-500.0,0.0001199,2]
[348650144,1736698270061,-572.61,0.0001199,2]
[348650145,1736698270070,-500.0,0.0001199,2]
[348650146,1736698270079,-500.0,0.0001199,2]
[348650147,1736698270089,-737.79,0.0001199,2]
[348650148,1736698270098,-2030.34,0.0001199,2]
[348650149,1736698270108,-778.33,0.0001199,2]
[348650150,1736698270117,-674.75,0.0001199,2]
[348650151,1736698270126,-627.29,0.0001199,2]
[348650152,1736698270136,-500.0,0.0001199,2]
[348650153,1736698270146,-2555.28,0.0001199,2]
[348650154,1736698270155,-500.0,0.0001199,2]
[348650155,1736698270165,-769.52,0.0001199,2]
[348650156,1736698270174,-1099.8,0.0001199,2]
[348650157,1736698270183,-500.0,0.0001199,2]
[348650158,1736698270192,-822.56,0.0001199,2]
[348650159,1736698270203,-661.75,0.0001199,2]
[348650160,1736698270212,-568.57,0.0001199,2]
[348650161,1736698270221,-234.82879078,0.0001199,2]
[348650162,1736698270231,-739.69,0.0001199,2]
[348650163,1736698270240,-500.0,0.0001199,2]
[348650164,1736698270250,-1321.1,0.0001199,2]
[348650165,1736698270259,-712.08,0.0001199,2]
[348650166,1736698270269,-500.0,0.0001199,2]
[348650167,1736698270279,-500.0,0.0001199,2]
[348650168,1736698270289,-520.917218,0.0001199,2]
[348650169,1736698270298,-1250.26,0.0001199,2]
[348650170,1736698270307,-720.34,0.0001199,2]
[348650171,1736698270316,-500.0,0.0001199,2]
[348650172,1736698270326,-539.86148399,0.0001199,2]
[348650173,1736698270336,-586.56,0.0001199,2]
[348650174,1736698270346,-1947.94,0.0001199,2]
[348650175,1736698270356,-500.0,0.0001199,2]
[348650176,1736698270365,-500.0,0.0001199,2]
[348650177,1736698270375,-874.09,0.0001199,2]
[348650178,1736698270385,-477.985251,0.0001199,2]
[348650179,1736698270398,-1912.02,0.0001199,2]
[348650180,1736698270407,-750.64,0.0001199,2]
[348650181,1736698270416,-6413.91,0.0001199,2]
[348650182,1736698270426,-488.06713071,0.0001199,2]
[348650183,1736698270436,-574.46,0.0001199,2]
[348650184,1736698270446,-500.0,0.0001199,2]
[348650185,1736698270455,-500.0,0.0001199,2]
[348650186,1736698270464,-663.35,0.0001199,2]
[348650187,1736698270473,-618.3,0.0001199,2]
[348650188,1736698270483,-707.41,0.0001199,2]
[348650189,1736698270492,-580.09,0.0001199,2]
[348650190,1736698270502,-500.0,0.0001199,2]
[348650191,1736698270511,-3816.01,0.0001199,2]
[348650192,1736698270522,-763.36,0.0001199,2]
[348650193,1736698270533,-994.13,0.0001199,2]
[348650194,1736698270543,-817.51,0.0001199,2]
[348650195,1736698270552,-500.0,0.0001199,2]
[348650196,1736698270563,-553.72,0.0001199,2]
[348650197,1736698270573,-1800.29,0.0001199,2]
[348650198,1736698270584,-500.0,0.0001199,2]
[348650199,1736698270593,-3410.99,0.0001199,2]
[348650200,1736698270604,-785.84,0.0001199,2]
[348650201,1736698270613,-500.0,0.0001199,2]
[348650202,1736698270623,-811.26,0.0001199,2]
[348650203,1736698270632,-544.71,0.0001199,2]
[348650204,1736698270642,-702.98,0.0001199,2]
[348650205,1736698270651,-500.0,0.0001199,2]
[348650206,1736698270660,-2588.92,0.0001199,2]
[348650207,1736698270669,-2758.27,0.0001199,2]
[348650208,1736698270679,-500.0,0.0001199,2]
[348650209,1736698270688,-187.04099567,0.0001199,2]
[348650210,1736698270697,-1069.66,0.0001199,2]
[348650211,1736698270707,-832.82,0.0001199,2]
[348650212,1736698270716,-724.64,0.0001199,2]
[348650213,1736698270725,-500.0,0.0001199,2]
[348650214,1736698270734,-2968.94,0.0001199,2]
[348650215,1736698270743,-549.09,0.0001199,2]
[348650216,1736698270752,-677.23,0.0001199,2]
[348650217,1736698270762,-697.25,0.0001199,2]
[348650218,1736698270771,-500.0,0.0001199,2]
[348650219,1736698270780,-604.83,0.0001199,2]
[348650220,1736698270789,-1761.21,0.0001199,2]
[348650221,1736698270798,-551.92,0.0001199,2]
[348650222,1736698270807,-701.02,0.0001199,2]
[348650223,1736698270816,-500.0,0.0001199,2]
[348650224,1736698270825,-534.93,0.0001199,2]
[348650225,1736698270835,-1390.39,0.0001199,2]
[348650226,1736698270844,-619.4,0.0001199,2]
[348650227,1736698270854,-1118.37,0.0001199,2]
[348650228,1736698270863,-667.23,0.0001199,2]
[348650229,1736698270872,-539.66,0.0001199,2]
[348650230,1736698270881,-1432.73,0.0001199,2]
[348650231,1736698270890,-500.0,0.0001199,2]
[348650232,1736698270899,-629.17,0.0001199,2]
[348650233,1736698270908,-899.38,0.0001199,2]
[348650234,1736698270917,-624.82,0.0001199,2]
[348650235,1736698270926,-500.0,0.00011991,2]
[348650236,1736698270935,-500.0,0.00011991,2]
[348650237,1736698270944,-500.0,0.00011991,2]
[348650238,1736698270953,-500.0,0.00011991,2]
[348650239,1736698270962,-1085.53,0.00011991,2]
[348650240,1736698270971,-2625.53,0.00011991,2]
[348650241,1736698270979,-500.0,0.00011991,2]
[348650242,1736698270989,-500.0,0.00011991,2]
[348650243,1736698270998,-2931.62,0.00011991,2]
[348650244,1736698271007,-500.0,0.00011991,2]
[348650245,1736698271016,-500.0,0.00011991,2]
[348650246,1736698271025,-500.0,0.00011991,2]
[348650247,1736698271035,-500.0,0.00011991,2]
[348650248,1736698271044,-500.0,0.00011991,2]
[348650249,1736698271053,-500.0,0.00011991,2]
[348650250,1736698271063,-500.0,0.00011991,2]
[348650251,1736698271072,-500.0,0.00011991,2]
[348650252,1736698271081,-500.0,0.00011991,2]
[348650253,1736698271090,-2949.15,0.00011991,2]
[348650254,1736698271099,-500.0,0.00011991,2]
[348650255,1736698271108,-500.0,0.00011991,2]
[348650256,1736698271117,-500.0,0.00011991,2]
[348650257,1736698271127,-500.0,0.00011991,2]
[348650258,1736698271137,-500.0,0.00011991,2]
[348650259,1736698271146,-578.26,0.00011991,2]
[348650260,1736698271156,-500.0,0.00011991,2]
[348650261,1736698271165,-500.0,0.00011991,2]
[348650262,1736698271175,-639.94,0.00011991,2]
[348650263,1736698271185,-500.0,0.00011991,2]
[348650264,1736698271194,-500.0,0.00011991,2]
[348650265,1736698271204,-527.2,0.00011991,2]
[348650266,1736698271213,-276.65657765,0.00011991,2]
[348650267,1736698271222,-500.0,0.00011991,2]
[348650268,1736698271232,-500.0,0.00011991,2]
[348650269,1736698271241,-526.05,0.00011991,2]
[348650270,1736698271251,-500.0,0.00011991,2]
[348650271,1736698271261,-500.0,0.00011991,2]
[348650272,1736698271271,-536.07,0.00011991,2]
[348650273,1736698271280,-500.0,0.00011991,2]
[348650274,1736698271290,-500.0,0.00011991,2]
[348650275,1736698271300,-464.32428878,0.00011991,2]
[348650276,1736698271309,-500.0,0.00011991,2]
[348650277,1736698271319,-500.0,0.00011991,2]
[348650278,1736698271328,-500.0,0.00011991,2]
[348650279,1736698271341,-500.0,0.00011991,2]
[348650280,1736698271351,-1225.39,0.00011991,2]
[348650281,1736698271360,-500.0,0.00011991,2]
[348650282,1736698271370,-565.92,0.00011991,2]
[348650283,1736698271379,-680.43,0.00011991,2]
[348650284,1736698271388,-949.43,0.00011991,2]
[348650285,1736698271399,-500.0,0.00011991,2]
[348650286,1736698271409,-500.0,0.00011991,2]
[348650287,1736698271420,-500.0,0.00011991,2]
[348650288,1736698271429,-500.0,0.00011991,2]
[348650289,1736698271439,-500.0,0.00011991,2]
[348650290,1736698271448,-500.0,0.00011991,2]
[348650291,1736698271457,-836.62,0.00011991,2]
[348650292,1736698271467,-1224.04,0.00011991,2]
[348650293,1736698271477,-670.04,0.00011991,2]
[348650294,1736698271487,-500.0,0.00011991,2]
[348650295,1736698271496,-966.69,0.00011991,2]
[348650296,1736698271507,-769.16,0.00011991,2]
[348650297,1736698271518,-1278.83,0.00011991,2]
[348650298,1736698271528,-500.0,0.00011991,2]
[348650299,1736698271540,-500.0,0.00011991,2]
[348650300,1736698271550,-500.0,0.00011991,2]
[348650301,1736698271560,-1772.47,0.00011991,2]
[348650302,1736698271570,-500.0,0.00011991,2]
[348650303,1736698271580,-500.0,0.00011991,2]
[348650304,1736698271590,-622.86,0.00011991,2]
[348650305,1736698271601,-500.0,0.00011991,2]
[348650306,1736698271610,-1258.1,0.00011991,2]
[348650307,1736698271620,-500.0,0.00011991,2]
[348650308,1736698271630,-500.0,0.00011991,2]
[348650309,1736698271639,-677.55,0.00011991,2]
[348650310,1736698271649,-500.0,0.00011991,2]
[348650311,1736698271658,-3775.72,0.00011991,2]
[348650312,1736698271668,-587.48,0.00011991,2]
[348650313,1736698271678,-779.09,0.00011991,2]
[348650314,1736698271687,-2872.41,0.00011991,2]
[348650315,1736698271697,-785.75,0.00011991,2]
[348650316,1736698271706,-1364.9,0.00011991,2]
[348650317,1736698271716,-540.47,0.00011991,2]
[348650318,1736698271726,-508.1,0.00011991,2]
[348650319,1736698271736,-751.84,0.00011991,2]
[348650320,1736698271746,-500.0,0.00011991,2]
[348650321,1736698271756,-500.0,0.00011991,2]
[348650322,1736698271766,-1078.66,0.00011991,2]
[348650323,1736698271775,-1350.0,0.00011997,2]
[348650324,1736698271785,-666.0,0.00011999,2]
[348650325,1736698271795,-50000.0,0.00012,7]
[348650326,1736698271806,-10000.00457257,0.00012,2]
[348650327,1736698271816,-1350.0,0.00012025,2]
[348650328,1736698271825,-200.82351209,0.00012044,2]
[348650329,1736698271836,-429.85393,0.00012048,2]
[348650330,1736698271846,-1350.0,0.00012052,2]
[348650331,1736698271855,-926.4666822,0.00012053,2]
[348650332,1736698271865,-666.0,0.00012053,2]
[348650333,1736698271875,-1143.03,0.00012053,2]
[348650334,1736698271885,-1189.15,0.00012053,2]
[348650335,1736698271895,-1400.67,0.00012053,2]
[348650336,1736698271905,-1064.24,0.00012053,2]
[348650337,1736698271914,-2470.06,0.00012053,2]
[348650338,1736698271924,-7500.0,0.00012054,2]
[348650339,1736698271933,-666.0,0.00012054,2]
[348650340,1736698271943,-200.0,0.00012055,2]
[348650341,1736698271953,-803.79,0.00012055,2]
[348650342,1736698271962,-573.03,0.00012055,2]
[348650343,1736698271972,-803.75,0.00012055,2]
[348650344,1736698271981,-546.86,0.00012055,2]
[348650345,1736698271990,-818.41,0.00012055,2]
[348650346,1736698272000,-1217.4,0.00012055,2]
[348650347,1736698272009,-2076.84,0.00012055,2]
[348650348,1736698272019,-4908.8,0.00012055,2]
[348650349,1736698272029,-883.49,0.00012055,2]
[348650350,1736698272038,-610.05,0.00012055,2]
[348650351,1736698272048,-650.83,0.00012055,2]
[348650352,1736698272058,-1685.23,0.00012055,2]
[348650353,1736698272068,-500.0,0.00012055,2]
[348650354,1736698272077,-1985.75,0.00012055,2]
[348650355,1736698272087,-718.65,0.00012055,2]
[348650356,1736698272097,-1042.88,0.00012055,2]
[348650357,1736698272107,-1379.44,0.00012055,2]
[348650358,1736698272116,-500.0,0.00012055,2]
[348650359,1736698272126,-1000.0,0.00012055,2]
[348650360,1736698272135,-822.3,0.00012055,2]
[348650361,1736698272145,-630.68696314,0.00012055,2]
[348650362,1736698272154,-1350.0,0.0001208,2]
[348650363,1736698272164,-150.0,0.00012113,2]
[348650364,1736698272173,-150.0,0.00012114,2]
[348650365,1736698272182,-666.0,0.00012125,2]
[348650366,1736698272191,-832.24,0.00012155,2]
[348650367,1736698272200,-558.76,0.00012155,2]
[348650368,1736698272209,-828.37,0.00012155,2]
[348650369,1736698272219,-920.15,0.00012155,2]
[348650370,1736698272228,-559.93,0.00012155,2]
[348650371,1736698272238,-679.82,0.00012155,2]
[348650372,1736698272247,-500.0,0.00012155,2]
[348650373,1736698272256,-500.0,0.00012155,2]
[348650374,1736698272266,-150.0,0.0001216,2]
[348650375,1736698272275,-200.82351209,0.00012167,2]
[348650376,1736698272285,-23537.63373074,0.0001218,2]
[348650377,1736698272295,-3000.0,0.0001218,2]
[348650378,1736698272307,-894.03,0.00012191,2]
[348650379,1736698272317,-2129.69,0.00012191,2]
[348650380,1736698272327,-945.51,0.00012191,2]
[348650381,1736698272340,-751.46,0.00012191,2]
[348650382,1736698272351,-761.1,0.00012191,2]
[348650383,1736698272360,-500.0,0.00012191,2]
[348650384,1736698272370,-500.0,0.00012191,2]
[348650385,1736698272379,-150.0,0.00012197,2]
[348650386,1736698272388,-774.1830946,0.000122,2]
[348650387,1736698272399,-202.8,0.000122,2]
[348650388,1736698272409,-358.64213298,0.000122,2]
[348650389,1736698272419,-8295.56767934,0.000122,2]
[348650390,1736698272429,-584.27805933,0.000122,2]
[348650391,1736698272439,-189.17333909,0.000122,2]
[348650392,1736698272449,-150.0,0.00012208,2]
[348650393,1736698272459,-150.0,0.00012216,2]
[348650394,1736698272468,-150.0,0.00012232,2]
[348650395,1736698272478,-1000.0,0.00012239,2]
[348650396,1736698272488,-1000.0,0.00012239,2]
[348650397,1736698272498,-1000.0,0.00012239,2]
[348650398,1736698272507,-1000.0,0.00012239,2]
[348650399,1736698272517,-1000.0,0.00012239,2]
[348650400,1736698272527,-1000.0,0.00012239,2]
[348650401,1736698272536,-1000.0,0.00012239,2]
[348650402,1736698272546,-1000.0,0.00012239,2]
[348650403,1736698272556,-1000.0,0.00012239,2]
[348650404,1736698272565,-1000.0,0.00012239,2]
[348650405,1736698272575,-1000.0,0.00012239,2]
[348650406,1736698272585,-1000.0,0.00012239,2]
[348650407,1736698272594,-1000.0,0.00012239,2]
[348650408,1736698272604,-1000.0,0.00012239,2]
[348650409,1736698272614,-1000.0,0.00012239,2]
[348650410,1736698272624,-1000.0,0.00012239,2]
[348650411,1736698272634,-1000.0,0.00012239,2]
[348650412,1736698272643,-1000.0,0.00012239,2]
[348650413,1736698272652,-1000.0,0.00012239,2]
[348650414,1736698272662,-1000.0,0.00012239,2]
[348650415,1736698272672,-1000.0,0.00012239,2]
[348650416,1736698272681,-1000.0,0.00012239,2]
[348650417,1736698272692,-1000.0,0.00012239,2]
[348650418,1736698272702,-1000.0,0.00012239,2]
[348650419,1736698272712,-1000.0,0.00012239,2]
[348650420,1736698272722,-1000.0,0.00012239,2]
[348650421,1736698272732,-1000.0,0.00012239,2]
[348650422,1736698272742,-1000.0,0.00012239,2]
[348650423,1736698272752,-1000.0,0.00012239,2]
[348650424,1736698272762,-1000.0,0.00012239,2]
[348650425,1736698272772,-1042.6256,0.00012239,2]
[348650426,1736698272782,-1590.69,0.00012263,2]
[348650427,1736698272792,-2660.24,0.00012263,2]
[348650428,1736698272802,-1655.31,0.00012263,2]
[348650429,1736698272812,-1031.3,0.00012263,2]
[348650430,1736698272822,-2429.75,0.00012263,2]
[348650431,1736698272832,-931.8,0.00012263,2]
[348650432,1736698272842,-773.96,0.00012263,2]
[348650433,1736698272853,-500.0,0.00012263,2]
[348650434,1736698272863,-960.5,0.00012263,2]
[348650435,1736698272874,-1143.84,0.00012263,2]
[348650436,1736698272883,-500.0,0.00012263,2]
[348650437,1736698272894,-500.0,0.00012263,2]
[348650438,1736698272903,-1522.49,0.00012263,2]
[348650439,1736698272914,-965.77,0.00012263,2]
[348650440,1736698272924,-369.39471056,0.00012263,2]
[348650441,1736698272934,-839.28,0.00012263,2]
[348650442,1736698272944,-711.53,0.00012263,2]
[348650443,1736698272953,-500.0,0.00012264,2]
[348650444,1736698272963,-845.28,0.00012264,2]
[348650445,1736698272973,-500.0,0.00012264,2]
[348650446,1736698272983,-660.73,0.00012264,2]
[348650447,1736698272992,-500.0,0.00012264,2]
[348650448,1736698273002,-500.0,0.00012264,2]
[348650449,1736698273012,-702.4,0.00012264,2]
[348650450,1736698273022,-500.0,0.00012264,2]
[348650451,1736698273032,-500.0,0.00012264,2]
[348650452,1736698273042,-871.11,0.00012264,2]
[348650453,1736698273052,-500.0,0.00012264,2]
[348650454,1736698273062,-548.82,0.00012264,2]
[348650455,1736698273072,-722.29,0.00012264,2]
[348650456,1736698273082,-665.64,0.00012264,2]
[348650457,1736698273091,-500.0,0.00012264,2]
[348650458,1736698273101,-500.0,0.00012264,2]
[348650459,1736698273111,-500.0,0.00012264,2]
[348650460,1736698273121,-500.0,0.00012264,2]
[348650461,1736698273130,-500.0,0.00012264,2]
[348650462,1736698273140,-500.0,0.00012264,2]
[348650463,1736698273150,-561.61,0.00012264,2]
[348650464,1736698273160,-500.0,0.00012264,2]
[348650465,1736698273171,-500.0,0.00012264,2]
[348650466,1736698273182,-702.99,0.00012264,2]
[348650467,1736698273193,-668.97,0.00012264,2]